[Event "December 19 Early 2023"]
[Site "https://www.chess.com"]
[Date "2023.12.19"]
[Round "3"]
[White "Koridze, Lile"]
[Black "Bushonica"]
[Result "1-0"]
[Board "247"]
[TimeControl "180+1"]
[WhiteFideId "13612514"]
[WhiteElo "2061"]
[BlackElo "1932"]
[WhiteTeam "GEO"]
[WhiteClock "0:01:59"]
[BlackClock "0:01:34"]

1. d4 {[%clk 0:03:00]}  d5 {[%clk 0:02:59]} 2. c4 {[%clk 0:03:00]}  e6 {[%clk 0:02:58]} 3. Nf3 {[%clk 0:02:59]}  c5 {[%clk 0:02:56]} 4. cxd5 {[%clk 0:02:58]}  exd5 {[%clk 0:02:56]} 5. g3 {[%clk 0:02:58]}  Nc6 {[%clk 0:02:55]} 6. Bg2 {[%clk 0:02:58]}  Nf6 {[%clk 0:02:54]} 7. O-O {[%clk 0:02:58]}  c4 {[%clk 0:02:53]} 8. Nc3 {[%clk 0:02:58]}  Be7 {[%clk 0:02:52]} 9. Re1 {[%clk 0:02:53]}  Bf5 {[%clk 0:02:38]} 10. Ne5 {[%clk 0:02:16]}  Rc8 {[%clk 0:02:26]} 11. Qa4 {[%clk 0:02:07]}  Qb6 {[%clk 0:02:20]} 12. Nxd5 {[%clk 0:02:05]}  Nxd5 {[%clk 0:02:15]} 13. Bxd5 {[%clk 0:02:05]}  Qxd4 {[%clk 0:02:05]} 14. Nxc6 {[%clk 0:02:01]}  bxc6 {[%clk 0:02:04]} 15. Bxc6+ {[%clk 0:02:01]}  Bd7 {[%clk 0:02:04]} 16. Bxd7+ {[%clk 0:02:00]}  Qxd7 {[%clk 0:02:04]} 17. Qxd7+ {[%clk 0:02:00]}  Kxd7 {[%clk 0:02:04]} 18. Be3 {[%clk 0:02:01]}  Rc7 {[%clk 0:02:01]} 19. Red1+ {[%clk 0:02:00]}  Kc6 {[%clk 0:01:55]} 20. Rac1 {[%clk 0:02:00]}  Rb8 {[%clk 0:01:51]} 21. Rxc4+ {[%clk 0:01:58]}  Kb7 {[%clk 0:01:47]} 22. Rxc7+ {[%clk 0:01:58]}  Kxc7 {[%clk 0:01:34]} 23. Bf4+ {[%clk 0:01:59]} 1-0

[Event "December 19 Early 2023"]
[Site "https://www.chess.com"]
[Date "2023.12.19"]
[Round "4"]
[White "Shevchenko, Kirill"]
[Black "Carlsen, Magnus"]
[Result "0-1"]
[Board "1"]
[TimeControl "180+1"]
[WhiteFideId "14129574"]
[BlackFideId "1503014"]
[WhiteElo "2603"]
[BlackElo "2887"]
[WhiteTeam "ROU"]
[BlackTeam "NOR"]
[WhiteClock "0:00:00"]
[BlackClock "0:00:21"]

1. d4 {[%clk 0:02:51]}  a6 {[%clk 0:02:58]} 2. h3 {[%clk 0:02:47]}  Nf6 {[%clk 0:02:49]} 3. Nf3 {[%clk 0:02:45]}  e6 {[%clk 0:02:45]} 4. Bf4 {[%clk 0:02:45]}  b6 {[%clk 0:02:35]} 5. e3 {[%clk 0:02:44]}  Bb7 {[%clk 0:02:34]} 6. Nbd2 {[%clk 0:02:44]}  Bd6 {[%clk 0:02:33]} 7. Bxd6 {[%clk 0:02:38]}  cxd6 {[%clk 0:02:34]} 8. Bd3 {[%clk 0:02:38]}  d5 {[%clk 0:02:28]} 9. Qe2 {[%clk 0:02:35]}  O-O {[%clk 0:02:25]} 10. e4 {[%clk 0:02:32]}  dxe4 {[%clk 0:02:13]} 11. Nxe4 {[%clk 0:02:32]}  d6 {[%clk 0:01:58]} 12. h4 {[%clk 0:02:01]}  Nxe4 {[%clk 0:01:49]} 13. Bxe4 {[%clk 0:02:00]}  Bxe4 {[%clk 0:01:50]} 14. Qxe4 {[%clk 0:02:01]}  Nd7 {[%clk 0:01:51]} 15. h5 {[%clk 0:01:29]}  Nf6 {[%clk 0:01:50]} 16. Qd3 {[%clk 0:01:29]}  h6 {[%clk 0:01:49]} 17. O-O-O {[%clk 0:01:07]}  Qd7 {[%clk 0:01:49]} 18. Rdg1 {[%clk 0:01:06]}  Qb5 {[%clk 0:01:49]} 19. Qd2 {[%clk 0:00:22]}  Rac8 {[%clk 0:01:42]} 20. g4 {[%clk 0:00:19]}  Qd5 {[%clk 0:01:43]} 21. Qd3 {[%clk 0:00:14]}  Qxa2 {[%clk 0:01:28]} 22. g5 {[%clk 0:00:14]}  hxg5 {[%clk 0:01:16]} 23. h6 {[%clk 0:00:12]}  g6 {[%clk 0:01:16]} 24. Rxg5 {[%clk 0:00:07]}  Kh8 {[%clk 0:01:08]} 25. Rhg1 {[%clk 0:00:05]}  Qc4 {[%clk 0:01:02]} 26. Kd2 {[%clk 0:00:03]}  d5 {[%clk 0:00:54]} 27. Ne5 {[%clk 0:00:02]}  Qxd3+ {[%clk 0:00:49]} 28. cxd3 {[%clk 0:00:02]}  Kh7 {[%clk 0:00:49]} 29. R5g3 {[%clk 0:00:02]}  Ng8 {[%clk 0:00:38]} 30. Rf3 {[%clk 0:00:01]}  Nxh6 {[%clk 0:00:36]} 31. Nd7 {[%clk 0:00:01]}  Rfd8 {[%clk 0:00:34]} 32. Nf6+ {[%clk 0:00:01]}  Kg7 {[%clk 0:00:34]} 33. Nh5+ {[%clk 0:00:02]}  Kf8 {[%clk 0:00:35]} 34. Rxg6 {[%clk 0:00:01]}  Nf5 {[%clk 0:00:34]} 35. Rg5 {[%clk 0:00:02]}  Nxd4 {[%clk 0:00:33]} 36. Rf4 {[%clk 0:00:02]}  Nf5 {[%clk 0:00:32]} 37. Ng3 {[%clk 0:00:03]}  Nxg3 {[%clk 0:00:32]} 38. fxg3 {[%clk 0:00:03]}  Ke7 {[%clk 0:00:31]} 39. Rg7 {[%clk 0:00:03]}  Rf8 {[%clk 0:00:32]} 40. Rh7 {[%clk 0:00:02]}  Rc7 {[%clk 0:00:30]} 41. Rb4 {[%clk 0:00:02]}  b5 {[%clk 0:00:30]} 42. Rh1 {[%clk 0:00:02]}  Rg8 {[%clk 0:00:29]} 43. g4 {[%clk 0:00:01]}  a5 {[%clk 0:00:27]} 44. Rf4 {[%clk 0:00:01]}  a4 {[%clk 0:00:24]} 45. Rhf1 {[%clk 0:00:01]}  Kd6 {[%clk 0:00:24]} 46. Rb4 {[%clk 0:00:01]}  Rb7 {[%clk 0:00:22]} 47. Kc3 {[%clk 0:00:01]}  Rc8+ {[%clk 0:00:20]} 48. Kd2 {[%clk 0:00:01]}  Rh8 {[%clk 0:00:21]} 49. Rff4 {[%clk 0:00:02]}  Rh2+ {[%clk 0:00:21]} 50. Ke3 {[%clk 0:00:01]}  e5 {[%clk 0:00:20]} 51. Rf6+ {[%clk 0:00:00]}  Kc5 {[%clk 0:00:21]} 0-1

[Event "December 19 Early 2023"]
[Site "https://www.chess.com"]
[Date "2023.12.19"]
[Round "4"]
[White "Rasulov, Vugar"]
[Black "Vachier-Lagrave, Maxime"]
[Result "1-0"]
[Board "3"]
[TimeControl "180+1"]
[WhiteFideId "13402390"]
[BlackFideId "623539"]
[WhiteElo "2517"]
[BlackElo "2748"]
[WhiteTeam "AZE"]
[BlackTeam "FRA"]
[WhiteClock "0:02:22"]
[BlackClock "0:02:21"]

1. e4 {[%clk 0:03:00]}  c6 {[%clk 0:02:58]} 2. d4 {[%clk 0:02:58]}  d5 {[%clk 0:02:59]} 3. e5 {[%clk 0:02:58]}  Bf5 {[%clk 0:02:57]} 4. Nf3 {[%clk 0:02:57]}  e6 {[%clk 0:02:57]} 5. Nbd2 {[%clk 0:02:57]}  Ne7 {[%clk 0:02:55]} 6. Nb3 {[%clk 0:02:57]}  h6 {[%clk 0:02:55]} 7. Be2 {[%clk 0:02:56]}  Nd7 {[%clk 0:02:54]} 8. O-O {[%clk 0:02:57]}  g5 {[%clk 0:02:54]} 9. Ne1 {[%clk 0:02:54]}  Bg7 {[%clk 0:02:50]} 10. Bd3 {[%clk 0:02:55]}  c5 {[%clk 0:02:42]} 11. Nxc5 {[%clk 0:02:44]}  Nxc5 {[%clk 0:02:42]} 12. dxc5 {[%clk 0:02:45]}  Bxe5 {[%clk 0:02:42]} 13. c3 {[%clk 0:02:28]}  Qc7 {[%clk 0:02:40]} 14. Nf3 {[%clk 0:02:22]}  Bg4 {[%clk 0:02:21]} 15. Qa4+ {[%clk 0:02:22]} 1-0

[Event "December 19 Early 2023"]
[Site "https://www.chess.com"]
[Date "2023.12.19"]
[Round "4"]
[White "Naroditsky, Daniel"]
[Black "Steinberg, Nitzan"]
[Result "1/2-1/2"]
[Board "4"]
[TimeControl "180+1"]
[WhiteFideId "2026961"]
[BlackFideId "2801795"]
[WhiteElo "2639"]
[BlackElo "2486"]
[WhiteTeam "USA"]
[BlackTeam "ISR"]
[WhiteClock "0:00:16"]
[BlackClock "0:00:48"]

1. e4 {[%clk 0:03:00]}  c5 {[%clk 0:03:00]} 2. Nf3 {[%clk 0:03:00]}  d6 {[%clk 0:03:00]} 3. Bb5+ {[%clk 0:03:00]}  Bd7 {[%clk 0:03:00]} 4. c4 {[%clk 0:02:57]}  g6 {[%clk 0:02:59]} 5. Nc3 {[%clk 0:02:57]}  Bg7 {[%clk 0:02:59]} 6. d4 {[%clk 0:02:53]}  cxd4 {[%clk 0:02:59]} 7. Nxd4 {[%clk 0:02:54]}  Nf6 {[%clk 0:02:59]} 8. Bxd7+ {[%clk 0:02:52]}  Qxd7 {[%clk 0:02:53]} 9. f3 {[%clk 0:02:49]}  O-O {[%clk 0:02:50]} 10. Be3 {[%clk 0:02:46]}  Nc6 {[%clk 0:02:50]} 11. O-O {[%clk 0:02:44]}  a6 {[%clk 0:02:41]} 12. a4 {[%clk 0:02:17]}  e6 {[%clk 0:02:34]} 13. Nxc6 {[%clk 0:01:36]}  Qxc6 {[%clk 0:02:20]} 14. Qd3 {[%clk 0:01:22]}  Rfd8 {[%clk 0:02:09]} 15. Rac1 {[%clk 0:01:16]}  Rac8 {[%clk 0:02:04]} 16. b3 {[%clk 0:01:14]}  Nd7 {[%clk 0:02:00]} 17. Rfd1 {[%clk 0:01:10]}  Nc5 {[%clk 0:01:54]} 18. Qc2 {[%clk 0:01:11]}  Qb6 {[%clk 0:01:54]} 19. Rb1 {[%clk 0:01:08]}  Qc6 {[%clk 0:01:46]} 20. a5 {[%clk 0:01:02]}  h5 {[%clk 0:01:43]} 21. Bd4 {[%clk 0:00:59]}  Qc7 {[%clk 0:01:28]} 22. Bxg7 {[%clk 0:00:58]}  Kxg7 {[%clk 0:01:28]} 23. Qb2 {[%clk 0:00:45]}  Kg8 {[%clk 0:01:23]} 24. Rd2 {[%clk 0:00:45]}  Nd7 {[%clk 0:01:23]} 25. Qa3 {[%clk 0:00:42]}  Ne5 {[%clk 0:01:05]} 26. Rbd1 {[%clk 0:00:42]}  Nc6 {[%clk 0:01:05]} 27. Ra1 {[%clk 0:00:35]}  Rd7 {[%clk 0:00:51]} 28. h3 {[%clk 0:00:33]}  h4 {[%clk 0:00:49]} 29. Rdd1 {[%clk 0:00:21]}  Rcd8 {[%clk 0:00:47]} 30. Rd2 {[%clk 0:00:21]}  Ne7 {[%clk 0:00:47]} 31. Rad1 {[%clk 0:00:21]}  Nc6 {[%clk 0:00:47]} 32. Ra1 {[%clk 0:00:19]}  Ne7 {[%clk 0:00:48]} 33. Rad1 {[%clk 0:00:20]}  Nc6 {[%clk 0:00:48]} 34. Ra1 {[%clk 0:00:16]} 1/2-1/2

[Event "December 19 Early 2023"]
[Site "https://www.chess.com"]
[Date "2023.12.19"]
[Round "4"]
[White "Bluebaum, Matthias"]
[Black "Livaic, Leon"]
[Result "1-0"]
[Board "7"]
[TimeControl "180+1"]
[WhiteFideId "24651516"]
[BlackFideId "14531534"]
[WhiteElo "2621"]
[BlackElo "2541"]
[WhiteTeam "GER"]
[BlackTeam "CRO"]
[WhiteClock "0:02:09"]
[BlackClock "0:00:48"]

1. d4 {[%clk 0:03:00]}  Nf6 {[%clk 0:02:59]} 2. c4 {[%clk 0:03:01]}  e6 {[%clk 0:03:00]} 3. Nc3 {[%clk 0:03:02]}  d5 {[%clk 0:03:00]} 4. cxd5 {[%clk 0:03:03]}  exd5 {[%clk 0:03:01]} 5. Bg5 {[%clk 0:03:03]}  Be7 {[%clk 0:03:02]} 6. e3 {[%clk 0:03:03]}  O-O {[%clk 0:03:02]} 7. Bd3 {[%clk 0:03:04]}  Re8 {[%clk 0:03:02]} 8. Nf3 {[%clk 0:03:04]}  h6 {[%clk 0:02:58]} 9. Bf4 {[%clk 0:03:04]}  c6 {[%clk 0:02:54]} 10. h3 {[%clk 0:03:04]}  Bd6 {[%clk 0:02:54]} 11. Ne5 {[%clk 0:02:59]}  Qe7 {[%clk 0:02:53]} 12. Bg3 {[%clk 0:02:57]}  a6 {[%clk 0:02:30]} 13. O-O {[%clk 0:02:55]}  c5 {[%clk 0:02:28]} 14. f4 {[%clk 0:02:49]}  Nc6 {[%clk 0:02:26]} 15. Bh4 {[%clk 0:02:39]}  cxd4 {[%clk 0:02:24]} 16. Nxd5 {[%clk 0:02:32]}  Qd8 {[%clk 0:01:47]} 17. Nxf6+ {[%clk 0:02:20]}  gxf6 {[%clk 0:01:47]} 18. Qh5 {[%clk 0:02:21]}  Qc7 {[%clk 0:00:48]} 19. Qxh6 {[%clk 0:02:09]} 1-0

[Event "December 19 Early 2023"]
[Site "https://www.chess.com"]
[Date "2023.12.19"]
[Round "4"]
[White "Popov, Konstantin"]
[Black "Pranav, V"]
[Result "1-0"]
[Board "8"]
[TimeControl "180+1"]
[WhiteFideId "34137910"]
[BlackFideId "25060783"]
[WhiteElo "2340"]
[BlackElo "2562"]
[WhiteTeam "FID"]
[BlackTeam "IND"]
[WhiteClock "0:00:05"]
[BlackClock "0:00:07"]

1. e4 {[%clk 0:03:00]}  e5 {[%clk 0:03:00]} 2. Nf3 {[%clk 0:03:01]}  Nc6 {[%clk 0:03:00]} 3. Bb5 {[%clk 0:03:02]}  a6 {[%clk 0:03:00]} 4. Ba4 {[%clk 0:03:02]}  Nf6 {[%clk 0:03:01]} 5. O-O {[%clk 0:03:02]}  Be7 {[%clk 0:03:02]} 6. d3 {[%clk 0:03:02]}  b5 {[%clk 0:03:00]} 7. Bb3 {[%clk 0:03:02]}  O-O {[%clk 0:03:01]} 8. a4 {[%clk 0:03:03]}  Bb7 {[%clk 0:02:58]} 9. Re1 {[%clk 0:02:59]}  d6 {[%clk 0:02:57]} 10. h3 {[%clk 0:02:55]}  Na5 {[%clk 0:02:57]} 11. Ba2 {[%clk 0:02:55]}  c5 {[%clk 0:02:57]} 12. Nc3 {[%clk 0:02:55]}  b4 {[%clk 0:02:54]} 13. Ne2 {[%clk 0:02:55]}  Bc6 {[%clk 0:02:51]} 14. Ng3 {[%clk 0:02:51]}  Bd7 {[%clk 0:02:42]} 15. c3 {[%clk 0:02:40]}  Rb8 {[%clk 0:02:34]} 16. Bd2 {[%clk 0:02:39]}  b3 {[%clk 0:02:28]} 17. Bb1 {[%clk 0:02:39]}  Re8 {[%clk 0:02:29]} 18. Nf5 {[%clk 0:02:27]}  Bxf5 {[%clk 0:02:21]} 19. exf5 {[%clk 0:02:28]}  Bf8 {[%clk 0:02:22]} 20. c4 {[%clk 0:02:21]}  Nc6 {[%clk 0:02:21]} 21. Ra3 {[%clk 0:02:19]}  Qb6 {[%clk 0:02:09]} 22. a5 {[%clk 0:02:14]}  Qb7 {[%clk 0:02:08]} 23. Bc3 {[%clk 0:02:15]}  d5 {[%clk 0:01:59]} 24. Nxe5 {[%clk 0:01:59]}  d4 {[%clk 0:01:51]} 25. Nxc6 {[%clk 0:01:58]}  Qxc6 {[%clk 0:01:51]} 26. Rxe8 {[%clk 0:01:49]}  Nxe8 {[%clk 0:01:45]} 27. Bd2 {[%clk 0:01:18]}  Qb7 {[%clk 0:01:45]} 28. Qg4 {[%clk 0:01:10]}  Bd6 {[%clk 0:01:40]} 29. Qe4 {[%clk 0:01:02]}  Qd7 {[%clk 0:01:30]} 30. g4 {[%clk 0:00:59]}  Nf6 {[%clk 0:01:29]} 31. Qf3 {[%clk 0:00:59]}  h6 {[%clk 0:01:29]} 32. Kg2 {[%clk 0:00:58]}  Qc7 {[%clk 0:01:22]} 33. h4 {[%clk 0:00:56]}  Nd7 {[%clk 0:01:20]} 34. g5 {[%clk 0:00:54]}  Ne5 {[%clk 0:01:17]} 35. Qe4 {[%clk 0:00:54]}  h5 {[%clk 0:01:02]} 36. f3 {[%clk 0:00:42]}  Qd7 {[%clk 0:00:57]} 37. Bf4 {[%clk 0:00:15]}  Nc6 {[%clk 0:00:49]} 38. Qd5 {[%clk 0:00:13]}  Rd8 {[%clk 0:00:25]} 39. Bxd6 {[%clk 0:00:12]}  Qb7 {[%clk 0:00:22]} 40. Qxc5 {[%clk 0:00:09]}  Re8 {[%clk 0:00:23]} 41. Kf2 {[%clk 0:00:09]}  g6 {[%clk 0:00:08]} 42. fxg6 {[%clk 0:00:09]}  fxg6 {[%clk 0:00:09]} 43. Qd5+ {[%clk 0:00:09]}  Kh7 {[%clk 0:00:09]} 44. c5 {[%clk 0:00:09]}  Qd7 {[%clk 0:00:09]} 45. Rxb3 {[%clk 0:00:08]}  Nd8 {[%clk 0:00:10]} 46. Rb8 {[%clk 0:00:04]}  Qh3 {[%clk 0:00:09]} 47. Rb7+ {[%clk 0:00:04]}  Nxb7 {[%clk 0:00:06]} 48. Qf7+ {[%clk 0:00:04]}  Kh8 {[%clk 0:00:06]} 49. Qxe8+ {[%clk 0:00:05]}  Kg7 {[%clk 0:00:07]} 50. Be5+ {[%clk 0:00:05]}  Kh7 {[%clk 0:00:07]} 51. Qf7# {[%clk 0:00:05]} 1-0

[Event "December 19 Early 2023"]
[Site "https://www.chess.com"]
[Date "2023.12.19"]
[Round "4"]
[White "Kravtsiv, Martyn"]
[Black "Suleymanli, Aydin"]
[Result "1/2-1/2"]
[Board "10"]
[TimeControl "180+1"]
[WhiteFideId "14113147"]
[BlackFideId "13413937"]
[WhiteElo "2689"]
[BlackElo "2553"]
[WhiteTeam "UKR"]
[BlackTeam "AZE"]
[WhiteClock "0:00:17"]
[BlackClock "0:00:17"]

1. e4 {[%clk 0:03:00]}  e5 {[%clk 0:02:56]} 2. Nf3 {[%clk 0:03:00]}  Nc6 {[%clk 0:02:56]} 3. Nc3 {[%clk 0:03:00]}  Nf6 {[%clk 0:02:55]} 4. a4 {[%clk 0:03:01]}  Bb4 {[%clk 0:02:42]} 5. Bd3 {[%clk 0:03:00]}  O-O {[%clk 0:02:41]} 6. O-O {[%clk 0:02:59]}  d6 {[%clk 0:02:41]} 7. Nd5 {[%clk 0:02:58]}  Nxd5 {[%clk 0:02:40]} 8. exd5 {[%clk 0:02:58]}  Ne7 {[%clk 0:02:10]} 9. c3 {[%clk 0:02:58]}  Nxd5 {[%clk 0:02:09]} 10. cxb4 {[%clk 0:02:49]}  Nxb4 {[%clk 0:02:10]} 11. Bb1 {[%clk 0:02:49]}  c5 {[%clk 0:02:08]} 12. b3 {[%clk 0:02:42]}  a5 {[%clk 0:02:04]} 13. Bb2 {[%clk 0:02:42]}  Be6 {[%clk 0:02:03]} 14. Re1 {[%clk 0:02:39]}  Re8 {[%clk 0:02:01]} 15. h3 {[%clk 0:02:36]}  Ra6 {[%clk 0:01:52]} 16. Bc3 {[%clk 0:02:08]}  Rb6 {[%clk 0:01:49]} 17. d4 {[%clk 0:01:59]}  cxd4 {[%clk 0:01:35]} 18. Nxd4 {[%clk 0:01:59]}  exd4 {[%clk 0:01:35]} 19. Qxd4 {[%clk 0:01:59]}  f6 {[%clk 0:01:22]} 20. Qh4 {[%clk 0:01:59]}  h6 {[%clk 0:01:18]} 21. Qe4 {[%clk 0:01:52]}  Kf8 {[%clk 0:01:16]} 22. Qd4 {[%clk 0:00:57]}  Nc6 {[%clk 0:01:06]} 23. Qd2 {[%clk 0:00:55]}  d5 {[%clk 0:00:58]} 24. Bg6 {[%clk 0:00:53]}  Bf7 {[%clk 0:00:52]} 25. Bxf7 {[%clk 0:00:51]}  Rxe1+ {[%clk 0:00:47]} 26. Rxe1 {[%clk 0:00:51]}  Kxf7 {[%clk 0:00:47]} 27. Bxa5 {[%clk 0:00:47]}  Nxa5 {[%clk 0:00:46]} 28. Qxa5 {[%clk 0:00:48]}  d4 {[%clk 0:00:45]} 29. Qh5+ {[%clk 0:00:43]}  Kf8 {[%clk 0:00:45]} 30. Qc5+ {[%clk 0:00:37]}  Kf7 {[%clk 0:00:42]} 31. Qc4+ {[%clk 0:00:26]}  Kf8 {[%clk 0:00:39]} 32. Rd1 {[%clk 0:00:23]}  Rd6 {[%clk 0:00:37]} 33. Qb4 {[%clk 0:00:23]}  Qb6 {[%clk 0:00:16]} 34. Qxb6 {[%clk 0:00:18]}  Rxb6 {[%clk 0:00:17]} 35. Rxd4 {[%clk 0:00:18]}  Rxb3 {[%clk 0:00:17]} 36. Rd7 {[%clk 0:00:19]}  Rb4 {[%clk 0:00:18]} 37. a5 {[%clk 0:00:19]}  Rb5 {[%clk 0:00:18]} 38. Rc7 {[%clk 0:00:18]}  Rxa5 {[%clk 0:00:17]} 39. Rxb7 {[%clk 0:00:18]}  Re5 {[%clk 0:00:17]} 40. g3 {[%clk 0:00:17]} 1/2-1/2

[Event "December 19 Early 2023"]
[Site "https://www.chess.com"]
[Date "2023.12.19"]
[Round "4"]
[White "Haug, Havard"]
[Black "Sarana, Alexey"]
[Result "1-0"]
[Board "12"]
[TimeControl "180+1"]
[WhiteFideId "1547887"]
[BlackFideId "24133795"]
[WhiteElo "2343"]
[BlackElo "2707"]
[WhiteTeam "NOR"]
[BlackTeam "SRB"]
[WhiteClock "0:00:13"]
[BlackClock "0:00:03"]

1. e4 {[%clk 0:03:00]}  c5 {[%clk 0:02:59]} 2. c3 {[%clk 0:02:59]}  d5 {[%clk 0:02:56]} 3. exd5 {[%clk 0:02:57]}  Qxd5 {[%clk 0:02:57]} 4. Nf3 {[%clk 0:02:58]}  Nc6 {[%clk 0:02:58]} 5. d4 {[%clk 0:02:58]}  Bf5 {[%clk 0:02:58]} 6. Be3 {[%clk 0:02:57]}  Nf6 {[%clk 0:02:58]} 7. dxc5 {[%clk 0:02:57]}  Qxd1+ {[%clk 0:02:58]} 8. Kxd1 {[%clk 0:02:58]}  e5 {[%clk 0:02:58]} 9. Bb5 {[%clk 0:02:56]}  O-O-O+ {[%clk 0:02:55]} 10. Ke2 {[%clk 0:02:54]}  Ng4 {[%clk 0:02:51]} 11. Bxc6 {[%clk 0:02:48]}  bxc6 {[%clk 0:02:45]} 12. b4 {[%clk 0:02:46]}  Bd3+ {[%clk 0:02:42]} 13. Ke1 {[%clk 0:02:46]}  f5 {[%clk 0:02:36]} 14. h3 {[%clk 0:02:45]}  Nxe3 {[%clk 0:02:35]} 15. fxe3 {[%clk 0:02:46]}  Be7 {[%clk 0:02:33]} 16. Kf2 {[%clk 0:02:31]}  e4 {[%clk 0:02:14]} 17. Ne5 {[%clk 0:02:23]}  Bxb1 {[%clk 0:02:13]} 18. Raxb1 {[%clk 0:02:20]}  Rd2+ {[%clk 0:02:13]} 19. Kg3 {[%clk 0:01:58]}  Kc7 {[%clk 0:02:11]} 20. Rhd1 {[%clk 0:01:50]}  Rhd8 {[%clk 0:02:11]} 21. Rxd2 {[%clk 0:01:42]}  Rxd2 {[%clk 0:02:12]} 22. a4 {[%clk 0:01:20]}  g6 {[%clk 0:01:48]} 23. h4 {[%clk 0:01:00]}  a6 {[%clk 0:01:28]} 24. Rb3 {[%clk 0:00:57]}  Bf6 {[%clk 0:01:20]} 25. Nc4 {[%clk 0:00:47]}  Rd3 {[%clk 0:01:20]} 26. b5 {[%clk 0:00:46]}  axb5 {[%clk 0:01:19]} 27. axb5 {[%clk 0:00:47]}  cxb5 {[%clk 0:01:16]} 28. Rxb5 {[%clk 0:00:47]}  Rxc3 {[%clk 0:01:14]} 29. Na5 {[%clk 0:00:37]}  Rxe3+ {[%clk 0:00:54]} 30. Kf4 {[%clk 0:00:37]}  Rc3 {[%clk 0:00:55]} 31. Rb7+ {[%clk 0:00:34]}  Kc8 {[%clk 0:00:54]} 32. Rxh7 {[%clk 0:00:32]}  Rxc5 {[%clk 0:00:52]} 33. Nb7 {[%clk 0:00:19]}  Rd5 {[%clk 0:00:39]} 34. h5 {[%clk 0:00:16]}  g5+ {[%clk 0:00:32]} 35. Ke3 {[%clk 0:00:15]}  Bd4+ {[%clk 0:00:26]} 36. Ke2 {[%clk 0:00:15]}  Bc3 {[%clk 0:00:17]} 37. h6 {[%clk 0:00:13]}  f4 {[%clk 0:00:18]} 38. Re7 {[%clk 0:00:11]}  Rd2+ {[%clk 0:00:16]} 39. Kf1 {[%clk 0:00:12]}  Rd1+ {[%clk 0:00:16]} 40. Ke2 {[%clk 0:00:12]}  Re1+ {[%clk 0:00:14]} 41. Kf2 {[%clk 0:00:12]}  e3+ {[%clk 0:00:15]} 42. Kf3 {[%clk 0:00:12]}  Rf1+ {[%clk 0:00:12]} 43. Ke2 {[%clk 0:00:10]}  Rf2+ {[%clk 0:00:10]} 44. Kd3 {[%clk 0:00:10]}  Bf6 {[%clk 0:00:10]} 45. Nd6+ {[%clk 0:00:08]}  Kd8 {[%clk 0:00:11]} 46. Re6 {[%clk 0:00:07]}  Rd2+ {[%clk 0:00:08]} 47. Kc4 {[%clk 0:00:06]}  e2 {[%clk 0:00:04]} 48. Nf5 {[%clk 0:00:05]}  Ba1 {[%clk 0:00:02]} 49. h7 {[%clk 0:00:05]}  Kd7 {[%clk 0:00:03]} 50. Re4 {[%clk 0:00:06]}  Rc2+ {[%clk 0:00:03]} 51. Kd3 {[%clk 0:00:05]}  Rc1 {[%clk 0:00:02]} 52. Kxe2 {[%clk 0:00:04]}  Rh1 {[%clk 0:00:02]} 53. Re7+ {[%clk 0:00:04]}  Kc6 {[%clk 0:00:03]} 54. Rf7 {[%clk 0:00:04]}  Kd5 {[%clk 0:00:03]} 55. Ra7 {[%clk 0:00:03]}  Bb2 {[%clk 0:00:02]} 56. Ne7+ {[%clk 0:00:03]}  Ke6 {[%clk 0:00:02]} 57. Ng6 {[%clk 0:00:03]}  Kf5 {[%clk 0:00:02]} 58. Ra6 {[%clk 0:00:03]}  Bf6 {[%clk 0:00:02]} 59. Nf8 {[%clk 0:00:03]}  Bg7 {[%clk 0:00:02]} 60. Ra5+ {[%clk 0:00:03]}  Kg4 {[%clk 0:00:02]} 61. Ne6 {[%clk 0:00:03]}  Bf6 {[%clk 0:00:03]} 62. Ra7 {[%clk 0:00:03]}  Kf5 {[%clk 0:00:03]} 63. Nf8 {[%clk 0:00:02]}  g4 {[%clk 0:00:03]} 64. Ra5+ {[%clk 0:00:03]}  Ke4 {[%clk 0:00:04]} 65. Ra4+ {[%clk 0:00:03]}  Kf5 {[%clk 0:00:04]} 66. Ra5+ {[%clk 0:00:03]}  Ke4 {[%clk 0:00:04]} 67. Ra4+ {[%clk 0:00:04]}  Bd4 {[%clk 0:00:04]} 68. Ne6 {[%clk 0:00:04]}  f3+ {[%clk 0:00:05]} 69. gxf3+ {[%clk 0:00:04]}  gxf3+ {[%clk 0:00:06]} 70. Kd2 {[%clk 0:00:05]}  Rh2+ {[%clk 0:00:07]} 71. Kd1 {[%clk 0:00:04]}  Rh1+ {[%clk 0:00:07]} 72. Kd2 {[%clk 0:00:05]}  Rh2+ {[%clk 0:00:07]} 73. Kd1 {[%clk 0:00:05]}  f2 {[%clk 0:00:08]} 74. Ke2 {[%clk 0:00:05]}  f1=Q+ {[%clk 0:00:02]} 75. Kxf1 {[%clk 0:00:05]}  Rxh7 {[%clk 0:00:03]} 76. Ng5+ {[%clk 0:00:04]}  Kd3 {[%clk 0:00:02]} 77. Nxh7 {[%clk 0:00:05]}  Be5 {[%clk 0:00:02]} 78. Ng5 {[%clk 0:00:05]}  Ke3 {[%clk 0:00:02]} 79. Ra3+ {[%clk 0:00:05]}  Kf4 {[%clk 0:00:02]} 80. Nf3 {[%clk 0:00:06]}  Bd6 {[%clk 0:00:02]} 81. Rb3 {[%clk 0:00:06]}  Bc5 {[%clk 0:00:03]} 82. Ke2 {[%clk 0:00:07]}  Ke4 {[%clk 0:00:03]} 83. Nd2+ {[%clk 0:00:07]}  Kd4 {[%clk 0:00:03]} 84. Rd3+ {[%clk 0:00:07]}  Ke5 {[%clk 0:00:03]} 85. Nc4+ {[%clk 0:00:08]}  Ke6 {[%clk 0:00:03]} 86. Kf3 {[%clk 0:00:08]}  Bb4 {[%clk 0:00:03]} 87. Ke4 {[%clk 0:00:08]}  Bc5 {[%clk 0:00:04]} 88. Rh3 {[%clk 0:00:09]}  Kf6 {[%clk 0:00:04]} 89. Rh6+ {[%clk 0:00:09]}  Kg5 {[%clk 0:00:04]} 90. Rc6 {[%clk 0:00:09]}  Bb4 {[%clk 0:00:04]} 91. Ne5 {[%clk 0:00:10]}  Bd2 {[%clk 0:00:04]} 92. Rg6+ {[%clk 0:00:10]}  Kh5 {[%clk 0:00:05]} 93. Rg2 {[%clk 0:00:10]}  Bc1 {[%clk 0:00:05]} 94. Nf3 {[%clk 0:00:11]}  Kh6 {[%clk 0:00:05]} 95. Kf5 {[%clk 0:00:11]}  Kh7 {[%clk 0:00:05]} 96. Ne5 {[%clk 0:00:12]}  Kh6 {[%clk 0:00:04]} 97. Nd7 {[%clk 0:00:12]}  Ba3 {[%clk 0:00:02]} 98. Nf6 {[%clk 0:00:12]}  Be7 {[%clk 0:00:03]} 99. Rg6# {[%clk 0:00:13]} 1-0